[Event "Early-Titled-Tuesday-Blitz-May-07-2024"]
[Site "Chess.com"]
[Date "2024.05.07"]
[Round "5"]
[White "Mr_ruthless"]
[Black "Barbix1"]
[Result "1-0"]
[WhiteElo "2493"]
[BlackElo "2270"]
[TimeControl "180+1"]
[EndTime "8:58:41 PDT"]
[Termination "Mr_ruthless won on time"]

1. Nf3 {[%clk 0:03:00.9]} 1... Nf6 {[%clk 0:02:52.3]} 2. g3 {[%clk 0:02:58.3]}
2... g6 {[%clk 0:02:51.7]} 3. Bg2 {[%clk 0:02:58.5]} 3... Bg7 {[%clk 0:02:51]}
4. O-O {[%clk 0:02:56.8]} 4... O-O {[%clk 0:02:50.8]} 5. c4 {[%clk 0:02:57.2]}
5... d5 {[%clk 0:02:50.1]} 6. d4 {[%clk 0:02:53.6]} 6... dxc4 {[%clk 0:02:45.4]}
7. Na3 {[%clk 0:02:47.2]} 7... c3 {[%clk 0:02:43.8]} 8. bxc3 {[%clk 0:02:46.9]}
8... c5 {[%clk 0:02:42.4]} 9. Ne5 {[%clk 0:02:30.9]} 9... Qa5 {[%clk 0:02:06]}
10. Qb3 {[%clk 0:02:06]} 10... Qa6 {[%clk 0:01:43.4]} 11. Nb5 {[%clk 0:01:53.8]}
11... Qb6 {[%clk 0:01:32.2]} 12. Nc4 {[%clk 0:01:49.2]} 12... Qd8 {[%clk
0:01:25.3]} 13. dxc5 {[%clk 0:01:49.5]} 13... Na6 {[%clk 0:01:19.5]} 14. Rd1
{[%clk 0:01:48.3]} 14... Qe8 {[%clk 0:01:07.7]} 15. Ba3 {[%clk 0:01:44.9]} 15...
Rb8 {[%clk 0:01:02]} 16. Nxa7 {[%clk 0:01:41.8]} 16... Be6 {[%clk 0:00:54.5]}
17. Rab1 {[%clk 0:01:33.8]} 17... Nd7 {[%clk 0:00:40.2]} 18. Qb5 {[%clk
0:01:23.2]} 18... Ndxc5 {[%clk 0:00:25.4]} 19. Bxc5 {[%clk 0:01:15.9]} 19...
Qxb5 {[%clk 0:00:25.1]} 20. Nxb5 {[%clk 0:01:03.9]} 20... Bxc4 {[%clk
0:00:25.7]} 21. Bxe7 {[%clk 0:01:02.9]} 21... Rfe8 {[%clk 0:00:21.7]} 22. Bd6
{[%clk 0:01:03.5]} 22... Rbd8 {[%clk 0:00:12]} 23. Bxb7 {[%clk 0:01:04]} 23...
Nb8 {[%clk 0:00:09.1]} 24. Bxb8 {[%clk 0:01:03]} 24... Rxb8 {[%clk 0:00:10]} 25.
Nd6 {[%clk 0:01:00.4]} 25... Bxe2 {[%clk 0:00:06.3]} 26. Nxe8 {[%clk 0:00:57.1]}
26... Bxd1 {[%clk 0:00:06]} 27. Nxg7 {[%clk 0:00:57.6]} 27... Kxg7 {[%clk
0:00:06.2]} 28. Rxd1 {[%clk 0:00:56.9]} 28... Rxb7 {[%clk 0:00:06.4]} 29. a4
{[%clk 0:00:55.9]} 29... Ra7 {[%clk 0:00:05.3]} 30. Ra1 {[%clk 0:00:56.1]} 30...
Kf6 {[%clk 0:00:05.6]} 31. a5 {[%clk 0:00:56.4]} 31... Ke5 {[%clk 0:00:05.5]}
32. a6 {[%clk 0:00:57]} 32... Kd5 {[%clk 0:00:05.4]} 33. Ra4 {[%clk 0:00:56.2]}
33... Kc5 {[%clk 0:00:04.9]} 34. Kg2 {[%clk 0:00:56.8]} 34... f5 {[%clk
0:00:02.3]} 35. Kf3 {[%clk 0:00:56.8]} 35... Kb5 {[%clk 0:00:01.4]} 36. Ra3
{[%clk 0:00:55.2]} 1-0

[Event "Early-Titled-Tuesday-Blitz-May-07-2024"]
[Site "Chess.com"]
[Date "2024.05.07"]
[Round "5"]
[White "stepanosinovsky"]
[Black "lefonghua"]
[Result "0-1"]
[WhiteElo "2324"]
[BlackElo "2560"]
[TimeControl "180+1"]
[EndTime "8:58:43 PDT"]
[Termination "lefonghua won on time"]

1. Nf3 {[%clk 0:02:57.4]} 1... Nf6 {[%clk 0:02:59]} 2. g3 {[%clk 0:02:58.3]}
2... g6 {[%clk 0:02:59.5]} 3. Bg2 {[%clk 0:02:58.8]} 3... Bg7 {[%clk 0:03:00.2]}
4. O-O {[%clk 0:02:59.4]} 4... O-O {[%clk 0:03:01]} 5. d3 {[%clk 0:02:59.9]}
5... d6 {[%clk 0:03:01.3]} 6. Nbd2 {[%clk 0:03:00.6]} 6... c5 {[%clk 0:03:01.7]}
7. e4 {[%clk 0:03:01.5]} 7... Nc6 {[%clk 0:03:02.1]} 8. Re1 {[%clk 0:03:02]}
8... Nd7 {[%clk 0:03:01.6]} 9. h4 {[%clk 0:02:59.3]} 9... Rb8 {[%clk 0:03:01.5]}
10. h5 {[%clk 0:02:58.9]} 10... b5 {[%clk 0:03:01.6]} 11. Nf1 {[%clk 0:02:57.3]}
11... Nd4 {[%clk 0:02:56.1]} 12. Ne3 {[%clk 0:02:44.6]} 12... Nxf3+ {[%clk
0:02:50]} 13. Qxf3 {[%clk 0:02:41.2]} 13... Ne5 {[%clk 0:02:50.1]} 14. Qe2
{[%clk 0:02:41.7]} 14... b4 {[%clk 0:02:46.4]} 15. hxg6 {[%clk 0:02:32.3]} 15...
hxg6 {[%clk 0:02:46.1]} 16. f4 {[%clk 0:02:32.9]} 16... Nc6 {[%clk 0:02:44.7]}
17. g4 {[%clk 0:02:27.5]} 17... Nd4 {[%clk 0:02:38.9]} 18. Qf2 {[%clk
0:02:27.4]} 18... e6 {[%clk 0:02:33.5]} 19. g5 {[%clk 0:02:20.8]} 19... f5
{[%clk 0:02:26.8]} 20. exf5 {[%clk 0:01:03.1]} 20... Nxf5 {[%clk 0:02:25.9]} 21.
Nxf5 {[%clk 0:01:02]} 21... gxf5 {[%clk 0:02:21.4]} 22. Qh4 {[%clk 0:00:50.9]}
22... Qe7 {[%clk 0:02:04.3]} 23. Rb1 {[%clk 0:00:34]} 23... Bd4+ {[%clk
0:01:50.4]} 24. Be3 {[%clk 0:00:32.3]} 24... Qh7 {[%clk 0:01:47.3]} 25. Qf2
{[%clk 0:00:26.2]} 25... Qg7 {[%clk 0:01:45.9]} 26. Bxd4 {[%clk 0:00:15.2]}
26... Qxd4 {[%clk 0:01:46.8]} 27. Re2 {[%clk 0:00:13.8]} 27... Qxf2+ {[%clk
0:01:45.1]} 28. Kxf2 {[%clk 0:00:14.7]} 28... Kg7 {[%clk 0:01:39.2]} 29. Rd1
{[%clk 0:00:14]} 29... d5 {[%clk 0:01:32.6]} 30. d4 {[%clk 0:00:12.4]} 30... c4
{[%clk 0:01:32.2]} 31. Bf3 {[%clk 0:00:11]} 31... Bd7 {[%clk 0:01:31.3]} 32. Kg3
{[%clk 0:00:11]} 32... Rh8 {[%clk 0:01:30.6]} 33. Rh2 {[%clk 0:00:10.4]} 33...
Rxh2 {[%clk 0:01:30.2]} 34. Kxh2 {[%clk 0:00:11.3]} 34... a5 {[%clk 0:01:30.7]}
35. Kg3 {[%clk 0:00:11.5]} 35... a4 {[%clk 0:01:29.9]} 36. Rc1 {[%clk
0:00:10.8]} 36... a3 {[%clk 0:01:23.6]} 37. Rb1 {[%clk 0:00:09.9]} 37... b3
{[%clk 0:01:13.9]} 38. cxb3 {[%clk 0:00:09.1]} 38... cxb3 {[%clk 0:01:11.9]} 39.
bxa3 {[%clk 0:00:06]} 39... bxa2 {[%clk 0:01:09.8]} 40. Ra1 {[%clk 0:00:03]}
40... Rb2 {[%clk 0:01:10]} 41. Bd1 {[%clk 0:00:01.9]} 41... Rb1 {[%clk
0:01:04.7]} 42. Rxa2 {[%clk 0:00:01.1]} 42... Rxd1 {[%clk 0:01:05.1]} 43. Rb2
{[%clk 0:00:01.1]} 43... Rd3+ {[%clk 0:00:56.6]} 0-1

[Event "Early-Titled-Tuesday-Blitz-May-07-2024"]
[Site "Chess.com"]
[Date "2024.05.07"]
[Round "5"]
[White "thesupera12"]
[Black "masnyszachistaaa"]
[Result "0-1"]
[WhiteElo "2448"]
[BlackElo "2588"]
[TimeControl "180+1"]
[EndTime "8:58:47 PDT"]
[Termination "masnyszachistaaa won by resignation"]

1. d4 {[%clk 0:03:00.9]} 1... Nf6 {[%clk 0:02:51.9]} 2. Bg5 {[%clk 0:02:59.9]}
2... d5 {[%clk 0:02:48.8]} 3. Bxf6 {[%clk 0:02:59.1]} 3... gxf6 {[%clk
0:02:45.8]} 4. e3 {[%clk 0:03:00]} 4... c6 {[%clk 0:02:20.5]} 5. c4 {[%clk
0:02:59.3]} 5... f5 {[%clk 0:01:40.3]} 6. cxd5 {[%clk 0:02:54.8]} 6... cxd5
{[%clk 0:01:41.2]} 7. Nc3 {[%clk 0:02:54.6]} 7... e6 {[%clk 0:01:37.7]} 8. Nf3
{[%clk 0:02:52.3]} 8... Nd7 {[%clk 0:01:36.6]} 9. g3 {[%clk 0:02:51]} 9... Nf6
{[%clk 0:01:34.5]} 10. Bb5+ {[%clk 0:02:47.3]} 10... Bd7 {[%clk 0:01:33.4]} 11.
Qa4 {[%clk 0:02:47.9]} 11... a6 {[%clk 0:01:30.5]} 12. Bxd7+ {[%clk 0:02:46]}
12... Qxd7 {[%clk 0:01:31.4]} 13. Qxd7+ {[%clk 0:02:45.1]} 13... Nxd7 {[%clk
0:01:31.6]} 14. Rc1 {[%clk 0:02:44.5]} 14... Rc8 {[%clk 0:01:27.3]} 15. Kd2
{[%clk 0:02:40.9]} 15... Nb6 {[%clk 0:01:16.3]} 16. b3 {[%clk 0:02:24.4]} 16...
Ba3 {[%clk 0:01:04.1]} 17. Rc2 {[%clk 0:02:23.6]} 17... Ke7 {[%clk 0:01:01.6]}
18. Nb1 {[%clk 0:02:10.4]} 18... Rxc2+ {[%clk 0:00:53.3]} 19. Kxc2 {[%clk
0:02:11.3]} 19... Rc8+ {[%clk 0:00:53.2]} 20. Kd3 {[%clk 0:02:10.5]} 20... Bd6
{[%clk 0:00:47.1]} 21. Nc3 {[%clk 0:02:03.2]} 21... Nd7 {[%clk 0:00:39]} 22. Rc1
{[%clk 0:02:01.7]} 22... Rc6 {[%clk 0:00:32.9]} 23. Rc2 {[%clk 0:01:55.6]} 23...
Nf6 {[%clk 0:00:32.8]} 24. h3 {[%clk 0:01:51.7]} 24... Ne4 {[%clk 0:00:31]} 25.
Ne1 {[%clk 0:01:40.1]} 25... Rxc3+ {[%clk 0:00:04.5]} 26. Rxc3 {[%clk
0:01:39.1]} 26... Nxf2+ {[%clk 0:00:04.5]} 27. Ke2 {[%clk 0:01:37.6]} 27... Nxh3
{[%clk 0:00:04.3]} 28. Kf3 {[%clk 0:01:31.5]} 28... Ng5+ {[%clk 0:00:04]} 29.
Kg2 {[%clk 0:01:28.4]} 29... Kd7 {[%clk 0:00:03.5]} 30. Nf3 {[%clk 0:01:27.5]}
30... Ne4 {[%clk 0:00:03.5]} 31. Rc1 {[%clk 0:01:23.9]} 31... Nxg3 {[%clk
0:00:03.8]} 32. Ne5+ {[%clk 0:01:23.1]} 32... Bxe5 {[%clk 0:00:03.9]} 33. dxe5
{[%clk 0:01:24]} 33... Ne4 {[%clk 0:00:03.8]} 34. Rh1 {[%clk 0:01:23]} 34... Nc3
{[%clk 0:00:03.9]} 35. Rxh7 {[%clk 0:01:22.6]} 35... Ke7 {[%clk 0:00:04.4]} 36.
Rh8 {[%clk 0:01:16.9]} 36... Nxa2 {[%clk 0:00:04]} 37. Rb8 {[%clk 0:01:17.6]}
37... b5 {[%clk 0:00:04.1]} 38. Rb7+ {[%clk 0:01:15.1]} 38... Kf8 {[%clk
0:00:04]} 39. Ra7 {[%clk 0:01:13.9]} 39... Nb4 {[%clk 0:00:02.9]} 40. Kg3 {[%clk
0:01:14.5]} 40... Kg7 {[%clk 0:00:02.8]} 41. Kf3 {[%clk 0:01:13.4]} 41... Kg6
{[%clk 0:00:03]} 42. Kg3 {[%clk 0:01:11.7]} 42... Nc2 {[%clk 0:00:02.7]} 43.
Rxa6 {[%clk 0:01:10.3]} 43... Nxe3 {[%clk 0:00:02.6]} 44. Rb6 {[%clk 0:01:07.4]}
44... d4 {[%clk 0:00:02.9]} 45. Rxb5 {[%clk 0:01:06.6]} 45... d3 {[%clk
0:00:02.3]} 46. Kf3 {[%clk 0:01:02.3]} 46... d2 {[%clk 0:00:02.4]} 47. Kxe3
{[%clk 0:01:02.8]} 47... d1=Q {[%clk 0:00:02.8]} 48. Rb4 {[%clk 0:01:02.5]}
48... Qe1+ {[%clk 0:00:03]} 49. Kd3 {[%clk 0:01:02.8]} 49... Qxb4 {[%clk
0:00:03.9]} 0-1

[Event "Early-Titled-Tuesday-Blitz-May-07-2024"]
[Site "Chess.com"]
[Date "2024.05.07"]
[Round "5"]
[White "OparinGrigoriy"]
[Black "GMG"]
[Result "1-0"]
[WhiteElo "2987"]
[BlackElo "2827"]
[TimeControl "180+1"]
[EndTime "8:58:50 PDT"]
[Termination "OparinGrigoriy won on time"]

1. c4 {[%clk 0:03:00.9]} 1... c5 {[%clk 0:02:55.5]} 2. g3 {[%clk 0:02:59.9]}
2... g6 {[%clk 0:02:55.5]} 3. Bg2 {[%clk 0:03:00.3]} 3... Bg7 {[%clk 0:02:56.2]}
4. Nc3 {[%clk 0:03:00.9]} 4... Nc6 {[%clk 0:02:56.6]} 5. e3 {[%clk 0:03:00.2]}
5... d6 {[%clk 0:02:45.8]} 6. Nge2 {[%clk 0:02:57.7]} 6... Bf5 {[%clk
0:02:45.9]} 7. d3 {[%clk 0:02:48.5]} 7... Qd7 {[%clk 0:02:41.7]} 8. h3 {[%clk
0:02:48.3]} 8... h5 {[%clk 0:02:30]} 9. a3 {[%clk 0:02:48.3]} 9... e5 {[%clk
0:02:17.3]} 10. b4 {[%clk 0:02:43.3]} 10... Nge7 {[%clk 0:02:11]} 11. bxc5
{[%clk 0:02:32.3]} 11... dxc5 {[%clk 0:02:11.9]} 12. e4 {[%clk 0:02:32.6]} 12...
Be6 {[%clk 0:02:11.3]} 13. Nd5 {[%clk 0:02:32.5]} 13... O-O {[%clk 0:02:07.5]}
14. Bg5 {[%clk 0:02:24.3]} 14... f6 {[%clk 0:02:06.4]} 15. Be3 {[%clk
0:02:24.4]} 15... Nd4 {[%clk 0:02:02]} 16. Bxd4 {[%clk 0:02:17.6]} 16... cxd4
{[%clk 0:02:00.3]} 17. Nxe7+ {[%clk 0:02:09.6]} 17... Qxe7 {[%clk 0:02:00.4]}
18. O-O {[%clk 0:02:10.3]} 18... Bh6 {[%clk 0:01:41.1]} 19. f4 {[%clk
0:02:09.5]} 19... Bf7 {[%clk 0:01:41.5]} 20. Kh1 {[%clk 0:02:05.6]} 20... Rac8
{[%clk 0:01:41.5]} 21. a4 {[%clk 0:02:01.6]} 21... Rc6 {[%clk 0:01:39.6]} 22.
Rb1 {[%clk 0:01:57.6]} 22... b6 {[%clk 0:01:37.9]} 23. h4 {[%clk 0:01:38.6]}
23... Rc5 {[%clk 0:01:30.9]} 24. Kh2 {[%clk 0:01:37.5]} 24... Be8 {[%clk
0:01:25.6]} 25. Ng1 {[%clk 0:01:22.3]} 25... Ra5 {[%clk 0:01:21.3]} 26. Ra1
{[%clk 0:01:13.2]} 26... exf4 {[%clk 0:01:11.6]} 27. gxf4 {[%clk 0:01:14.1]}
27... Qd6 {[%clk 0:01:08.9]} 28. Qf3 {[%clk 0:01:05.9]} 28... Bxa4 {[%clk
0:01:02.6]} 29. Qg3 {[%clk 0:01:03.2]} 29... Kh7 {[%clk 0:01:00.8]} 30. e5
{[%clk 0:00:56.6]} 30... fxe5 {[%clk 0:00:34.5]} 31. fxe5 {[%clk 0:00:57.5]}
31... Rxe5 {[%clk 0:00:34.6]} 32. Rxa4 {[%clk 0:00:47.5]} 32... Rxf1 {[%clk
0:00:30.5]} 33. Rxa7+ {[%clk 0:00:45.4]} 33... Kh8 {[%clk 0:00:24.9]} 34. Bxf1
{[%clk 0:00:45.8]} 34... Qf6 {[%clk 0:00:05]} 35. Nh3 {[%clk 0:00:46]} 35... Re3
{[%clk 0:00:02.3]} 36. Qb8+ {[%clk 0:00:45.3]} 36... Bf8 {[%clk 0:00:02]} 37.
Bg2 {[%clk 0:00:37.7]} 1-0

[Event "Early-Titled-Tuesday-Blitz-May-07-2024"]
[Site "Chess.com"]
[Date "2024.05.07"]
[Round "5"]
[White "jk13"]
[Black "balack95"]
[Result "0-1"]
[WhiteElo "2655"]
[BlackElo "2517"]
[TimeControl "180+1"]
[EndTime "8:58:50 PDT"]
[Termination "balack95 won by resignation"]

1. e4 {[%clk 0:03:00.9]} 1... c5 {[%clk 0:02:57.4]} 2. c3 {[%clk 0:03:00.6]}
2... Nf6 {[%clk 0:02:57.3]} 3. e5 {[%clk 0:03:01.1]} 3... Nd5 {[%clk 0:02:57.9]}
4. Bc4 {[%clk 0:03:01.5]} 4... e6 {[%clk 0:02:58.2]} 5. Nf3 {[%clk 0:03:01.2]}
5... Be7 {[%clk 0:02:57.2]} 6. d4 {[%clk 0:03:01.6]} 6... cxd4 {[%clk 0:02:57]}
7. cxd4 {[%clk 0:03:02.5]} 7... d6 {[%clk 0:02:57.2]} 8. O-O {[%clk 0:03:01.7]}
8... O-O {[%clk 0:02:57.8]} 9. Qe2 {[%clk 0:03:01.7]} 9... Nc6 {[%clk
0:02:40.5]} 10. a3 {[%clk 0:02:58.7]} 10... Qc7 {[%clk 0:02:38]} 11. Bxd5 {[%clk
0:02:52.1]} 11... exd5 {[%clk 0:02:38.9]} 12. Nc3 {[%clk 0:02:52.6]} 12... Be6
{[%clk 0:02:38]} 13. exd6 {[%clk 0:02:46.5]} 13... Bxd6 {[%clk 0:02:32.2]} 14.
Nb5 {[%clk 0:02:46.4]} 14... Qd7 {[%clk 0:02:32.8]} 15. Nxd6 {[%clk 0:02:46.7]}
15... Qxd6 {[%clk 0:02:33.7]} 16. Bg5 {[%clk 0:02:44.3]} 16... h6 {[%clk
0:02:33.5]} 17. Bh4 {[%clk 0:02:44.6]} 17... Bg4 {[%clk 0:02:32.9]} 18. Rad1
{[%clk 0:02:39.8]} 18... Rfe8 {[%clk 0:02:31.5]} 19. Qd3 {[%clk 0:02:35]} 19...
Re4 {[%clk 0:02:23.5]} 20. Qc3 {[%clk 0:02:02.5]} 20... Bxf3 {[%clk 0:02:11.1]}
21. Bg3 {[%clk 0:02:02.7]} 21... Qf6 {[%clk 0:02:11.5]} 22. gxf3 {[%clk
0:01:52.8]} 22... Re2 {[%clk 0:02:07.8]} 23. b4 {[%clk 0:01:43.4]} 23... a6
{[%clk 0:02:05.7]} 24. a4 {[%clk 0:01:42.6]} 24... h5 {[%clk 0:02:00.6]} 25. b5
{[%clk 0:01:36.7]} 25... axb5 {[%clk 0:02:00.4]} 26. axb5 {[%clk 0:01:37]} 26...
Ne7 {[%clk 0:01:37.3]} 27. Rfe1 {[%clk 0:01:34.1]} 27... Rxe1+ {[%clk
0:01:34.8]} 28. Rxe1 {[%clk 0:01:34.3]} 28... Ng6 {[%clk 0:01:34.6]} 29. h3
{[%clk 0:01:12.3]} 29... Qf5 {[%clk 0:01:33.4]} 30. Kg2 {[%clk 0:01:08.3]} 30...
h4 {[%clk 0:01:23.1]} 31. Bh2 {[%clk 0:01:08.5]} 31... Qg5+ {[%clk 0:01:15.4]}
32. Kh1 {[%clk 0:01:07.8]} 32... Ra2 {[%clk 0:01:13.9]} 33. f4 {[%clk
0:00:34.9]} 33... Qf5 {[%clk 0:01:11.3]} 34. Qf3 {[%clk 0:00:33.4]} 34... Rd2
{[%clk 0:01:05.8]} 35. Kg1 {[%clk 0:00:18.8]} 35... Rxd4 {[%clk 0:01:05.1]} 36.
Re3 {[%clk 0:00:12.4]} 36... Re4 {[%clk 0:01:03.5]} 37. Kg2 {[%clk 0:00:08.9]}
37... Nxf4+ {[%clk 0:00:58.6]} 38. Bxf4 {[%clk 0:00:09]} 38... Rxf4 {[%clk
0:00:59.5]} 39. Re8+ {[%clk 0:00:08.5]} 39... Kh7 {[%clk 0:00:59.7]} 40. Qe2
{[%clk 0:00:09.4]} 40... d4 {[%clk 0:00:55]} 41. Re5 {[%clk 0:00:09.6]} 41...
Rxf2+ {[%clk 0:00:52.6]} 42. Qxf2 {[%clk 0:00:08.2]} 42... Qxe5 {[%clk
0:00:53.1]} 43. Qxh4+ {[%clk 0:00:09.1]} 43... Kg6 {[%clk 0:00:53.3]} 44. b6
{[%clk 0:00:08.1]} 44... Qg5+ {[%clk 0:00:44.3]} 45. Qxg5+ {[%clk 0:00:08.3]}
45... Kxg5 {[%clk 0:00:45.2]} 0-1

[Event "Early-Titled-Tuesday-Blitz-May-07-2024"]
[Site "Chess.com"]
[Date "2024.05.07"]
[Round "5"]
[White "Alphafischer2019"]
[Black "RantomOpening"]
[Result "0-1"]
[WhiteElo "2645"]
[BlackElo "2516"]
[TimeControl "180+1"]
[EndTime "8:58:51 PDT"]
[Termination "RantomOpening won by resignation"]

1. Nf3 {[%clk 0:03:00.9]} 1... d5 {[%clk 0:02:54.6]} 2. g3 {[%clk 0:02:59.4]}
2... e6 {[%clk 0:02:53.4]} 3. Bg2 {[%clk 0:02:58.8]} 3... Nf6 {[%clk 0:02:52.1]}
4. O-O {[%clk 0:02:57.8]} 4... c5 {[%clk 0:02:48.2]} 5. d3 {[%clk 0:02:56.9]}
5... Nc6 {[%clk 0:02:47.3]} 6. Nbd2 {[%clk 0:02:55.9]} 6... Be7 {[%clk
0:02:47.6]} 7. e4 {[%clk 0:02:55.1]} 7... O-O {[%clk 0:02:47.8]} 8. Re1 {[%clk
0:02:53.8]} 8... b5 {[%clk 0:02:48]} 9. exd5 {[%clk 0:02:53.2]} 9... exd5 {[%clk
0:02:47.5]} 10. d4 {[%clk 0:02:54.1]} 10... Qb6 {[%clk 0:02:47.8]} 11. c3 {[%clk
0:02:36.5]} 11... h6 {[%clk 0:02:37.3]} 12. Ne5 {[%clk 0:02:33.9]} 12... Be6
{[%clk 0:02:33.1]} 13. Nxc6 {[%clk 0:02:22.2]} 13... Qxc6 {[%clk 0:02:34]} 14.
dxc5 {[%clk 0:02:22.8]} 14... Bxc5 {[%clk 0:02:33.7]} 15. Nb3 {[%clk 0:02:23.3]}
15... Bg4 {[%clk 0:02:26.8]} 16. Qd3 {[%clk 0:02:17.7]} 16... Bb6 {[%clk
0:02:13.6]} 17. Nd4 {[%clk 0:02:14.3]} 17... Qc4 {[%clk 0:02:11.1]} 18. Qxc4
{[%clk 0:02:13.7]} 18... bxc4 {[%clk 0:02:12]} 19. Be3 {[%clk 0:02:11.9]} 19...
Rfe8 {[%clk 0:01:50.1]} 20. h3 {[%clk 0:02:09]} 20... Bd7 {[%clk 0:01:45.5]} 21.
Rad1 {[%clk 0:02:08.1]} 21... Rab8 {[%clk 0:01:45.2]} 22. Nc2 {[%clk 0:01:56.9]}
22... Ba4 {[%clk 0:01:43.3]} 23. Bxb6 {[%clk 0:01:43.6]} 23... Bxc2 {[%clk
0:01:34.8]} 24. Rxe8+ {[%clk 0:01:32.5]} 24... Rxe8 {[%clk 0:01:29.7]} 25. Rc1
{[%clk 0:01:30.1]} 25... Be4 {[%clk 0:01:07.7]} 26. Bxa7 {[%clk 0:01:26.8]}
26... Bxg2 {[%clk 0:01:07.5]} 27. Kxg2 {[%clk 0:01:26.1]} 27... Ra8 {[%clk
0:01:07.6]} 28. Bc5 {[%clk 0:01:25.1]} 28... Rxa2 {[%clk 0:01:07.3]} 29. Ba3
{[%clk 0:01:25.7]} 29... Ne4 {[%clk 0:01:04.5]} 30. Rd1 {[%clk 0:01:21.7]} 30...
Nxc3 {[%clk 0:01:03.8]} 31. Rd4 {[%clk 0:01:14.5]} 31... Nb5 {[%clk 0:00:54.6]}
32. Rxd5 {[%clk 0:01:14.7]} 32... Nxa3 {[%clk 0:00:55]} 33. bxa3 {[%clk
0:01:15.6]} 33... Rxa3 {[%clk 0:00:55.2]} 34. Rc5 {[%clk 0:01:16.5]} 34... Rc3
{[%clk 0:00:55.4]} 35. Rc7 {[%clk 0:01:12.8]} 35... g6 {[%clk 0:00:52.7]} 36. g4
{[%clk 0:01:11.3]} 36... Kg7 {[%clk 0:00:52.8]} 37. Rc6 {[%clk 0:01:10.9]} 37...
Rc2 {[%clk 0:00:51.3]} 38. Kg3 {[%clk 0:01:10.8]} 38... c3 {[%clk 0:00:51.7]}
39. f4 {[%clk 0:01:03.4]} 39... Kf8 {[%clk 0:00:51.6]} 40. Rc7 {[%clk
0:01:02.8]} 40... Ke8 {[%clk 0:00:51.3]} 41. Rc8+ {[%clk 0:01:01.7]} 41... Kd7
{[%clk 0:00:51.1]} 42. Rf8 {[%clk 0:01:01.9]} 42... Ke7 {[%clk 0:00:48.7]} 43.
Rc8 {[%clk 0:01:02.1]} 43... Rc1 {[%clk 0:00:49.2]} 44. Kg2 {[%clk 0:01:01.9]}
44... c2 {[%clk 0:00:48.5]} 45. Rc3 {[%clk 0:01:02.1]} 45... Kd6 {[%clk
0:00:48.7]} 46. Rc8 {[%clk 0:00:55.4]} 46... Kd5 {[%clk 0:00:48.4]} 47. Rc7
{[%clk 0:00:49.9]} 47... Ke4 {[%clk 0:00:47.8]} 48. Rc4+ {[%clk 0:00:40]} 48...
Ke3 {[%clk 0:00:46.3]} 49. f5 {[%clk 0:00:39.2]} 49... gxf5 {[%clk 0:00:41.5]}
50. gxf5 {[%clk 0:00:39.3]} 50... Kd3 {[%clk 0:00:41.9]} 51. Rc8 {[%clk
0:00:39.2]} 51... Rd1 {[%clk 0:00:41.1]} 52. Rd8+ {[%clk 0:00:37.4]} 52... Ke4
{[%clk 0:00:41]} 0-1

[Event "Early-Titled-Tuesday-Blitz-May-07-2024"]
[Site "Chess.com"]
[Date "2024.05.07"]
[Round "5"]
[White "Alina_Gumerovna"]
[Black "talaicito"]
[Result "0-1"]
[WhiteElo "2174"]
[BlackElo "2377"]
[TimeControl "180+1"]
[EndTime "8:58:51 PDT"]
[Termination "talaicito won on time"]

1. e4 {[%clk 0:02:59.7]} 1... c5 {[%clk 0:02:57.6]} 2. Nf3 {[%clk 0:03:00.2]}
2... d6 {[%clk 0:02:57.3]} 3. d4 {[%clk 0:03:00.9]} 3... cxd4 {[%clk 0:02:58.2]}
4. Nxd4 {[%clk 0:03:01.8]} 4... Nf6 {[%clk 0:02:58.7]} 5. Nc3 {[%clk 0:03:02.4]}
5... g6 {[%clk 0:02:59.6]} 6. f3 {[%clk 0:03:02]} 6... Bg7 {[%clk 0:02:59.1]} 7.
Be3 {[%clk 0:03:02.7]} 7... Nc6 {[%clk 0:02:59.5]} 8. Qd2 {[%clk 0:03:02.7]}
8... O-O {[%clk 0:02:59.9]} 9. O-O-O {[%clk 0:03:03.1]} 9... d5 {[%clk
0:03:00.2]} 10. Nxc6 {[%clk 0:02:52.9]} 10... bxc6 {[%clk 0:02:59.7]} 11. Bh6
{[%clk 0:02:39.1]} 11... Be6 {[%clk 0:02:44.1]} 12. Bxg7 {[%clk 0:02:38.9]}
12... Kxg7 {[%clk 0:02:43.7]} 13. e5 {[%clk 0:02:18]} 13... Nd7 {[%clk
0:02:38.6]} 14. h4 {[%clk 0:01:54.9]} 14... h5 {[%clk 0:02:12.7]} 15. g4 {[%clk
0:00:51.7]} 15... Rh8 {[%clk 0:02:11.5]} 16. gxh5 {[%clk 0:00:41.5]} 16... Rxh5
{[%clk 0:02:12.4]} 17. f4 {[%clk 0:00:37]} 17... Bg4 {[%clk 0:01:54.4]} 18. Be2
{[%clk 0:00:36.7]} 18... Bxe2 {[%clk 0:01:53.8]} 19. Qxe2 {[%clk 0:00:37.6]}
19... e6 {[%clk 0:01:53.6]} 20. Qf2 {[%clk 0:00:29.2]} 20... Qb6 {[%clk
0:01:49.7]} 21. Qf3 {[%clk 0:00:19.4]} 21... Rb8 {[%clk 0:01:44.9]} 22. b3
{[%clk 0:00:15.9]} 22... Rbh8 {[%clk 0:01:28.1]} 23. Qg3 {[%clk 0:00:08]} 23...
Qd8 {[%clk 0:01:19.5]} 24. Qe3 {[%clk 0:00:02.9]} 24... c5 {[%clk 0:01:13.7]}
25. Ne2 {[%clk 0:00:01.7]} 25... Rxh4 {[%clk 0:01:09.1]} 26. Rxh4 {[%clk
0:00:02.6]} 26... Rxh4 {[%clk 0:01:08.6]} 27. Rg1 {[%clk 0:00:02.2]} 27... Qh8
{[%clk 0:01:01.9]} 28. Qf2 {[%clk 0:00:02.4]} 28... Rh1 {[%clk 0:01:00.7]} 29.
Kb2 {[%clk 0:00:03.1]} 29... Rxg1 {[%clk 0:01:00]} 30. Qxg1 {[%clk 0:00:03.5]}
30... Qh5 {[%clk 0:00:59.6]} 31. Qf2 {[%clk 0:00:03.4]} 31... Qg4 {[%clk
0:00:57.4]} 32. Nc3 {[%clk 0:00:03.3]} 32... Qf5 {[%clk 0:00:50.7]} 33. a4
{[%clk 0:00:03.3]} 33... d4 {[%clk 0:00:47.8]} 34. Nb5 {[%clk 0:00:02.6]} 34...
a6 {[%clk 0:00:40.6]} 35. Nc7 {[%clk 0:00:02.7]} 35... Nxe5 {[%clk 0:00:38.5]}
36. Nxa6 {[%clk 0:00:02]} 36... d3 {[%clk 0:00:37.9]} 0-1